[Event "Early-Titled-Tuesday-Blitz-May-14-2024"]
[Site "Chess.com"]
[Date "2024.05.14"]
[Round "6"]
[White "edgarhay012"]
[Black "LangesNasenhaar"]
[Result "0-1"]
[WhiteElo "2623"]
[BlackElo "2482"]
[TimeControl "180+1"]
[EndTime "9:08:10 PDT"]
[Termination "LangesNasenhaar won by resignation"]

1. e4 {[%clk 0:02:52.3]} 1... g6 {[%clk 0:03:00.1]} 2. d4 {[%clk 0:02:52.3]}
2... Bg7 {[%clk 0:03:00.6]} 3. Nc3 {[%clk 0:02:52.9]} 3... c6 {[%clk 0:03:00.9]}
4. Nf3 {[%clk 0:02:52.5]} 4... d5 {[%clk 0:03:01.5]} 5. e5 {[%clk 0:02:52.5]}
5... f6 {[%clk 0:03:01]} 6. h4 {[%clk 0:02:51]} 6... Bg4 {[%clk 0:03:00.3]} 7.
Be2 {[%clk 0:02:48.1]} 7... Nd7 {[%clk 0:02:49.6]} 8. h5 {[%clk 0:02:37.3]} 8...
Bxh5 {[%clk 0:02:42.8]} 9. Bf4 {[%clk 0:01:54.5]} 9... Bxf3 {[%clk 0:02:35.9]}
10. gxf3 {[%clk 0:01:47.5]} 10... fxe5 {[%clk 0:02:35.2]} 11. dxe5 {[%clk
0:01:48.4]} 11... Nxe5 {[%clk 0:02:08.4]} 12. Qd2 {[%clk 0:01:46.4]} 12... Qa5
{[%clk 0:01:55.6]} 13. O-O-O {[%clk 0:01:42.9]} 13... Nf7 {[%clk 0:01:21.4]} 14.
Kb1 {[%clk 0:01:36.1]} 14... Bxc3 {[%clk 0:01:17.1]} 15. Qxc3 {[%clk 0:01:37]}
15... Qxc3 {[%clk 0:01:16.9]} 16. bxc3 {[%clk 0:01:37.9]} 16... e5 {[%clk
0:01:13.8]} 17. Be3 {[%clk 0:01:38.4]} 17... Nf6 {[%clk 0:01:11.8]} 18. f4
{[%clk 0:01:36.9]} 18... Ne4 {[%clk 0:01:05.2]} 19. Rd3 {[%clk 0:01:32.2]} 19...
exf4 {[%clk 0:01:02]} 20. Bd4 {[%clk 0:01:32.5]} 20... O-O {[%clk 0:00:57.2]}
21. c4 {[%clk 0:01:22.6]} 21... c5 {[%clk 0:00:51.8]} 22. Ba1 {[%clk 0:01:20]}
22... Nxf2 {[%clk 0:00:48.5]} 23. Rg1 {[%clk 0:00:59.8]} 23... Nxd3 {[%clk
0:00:43.9]} 24. Bxd3 {[%clk 0:01:00.7]} 24... d4 {[%clk 0:00:42.1]} 25. c3
{[%clk 0:01:00.6]} 25... Ne5 {[%clk 0:00:39.4]} 26. Be4 {[%clk 0:01:00]} 26...
Rad8 {[%clk 0:00:38.3]} 27. cxd4 {[%clk 0:00:59.9]} 27... Rxd4 {[%clk
0:00:32.2]} 28. Bxd4 {[%clk 0:00:58.7]} 28... cxd4 {[%clk 0:00:32.6]} 29. c5
{[%clk 0:00:58.9]} 29... f3 {[%clk 0:00:32.3]} 30. Rf1 {[%clk 0:00:54.4]} 30...
f2 {[%clk 0:00:29.1]} 31. Kc1 {[%clk 0:00:37]} 31... Ng4 {[%clk 0:00:27.2]} 32.
Bxb7 {[%clk 0:00:35.7]} 32... Ne3 {[%clk 0:00:27.2]} 33. Ba6 {[%clk 0:00:35.8]}
33... Nxf1 {[%clk 0:00:26.1]} 34. Bxf1 {[%clk 0:00:36.7]} 34... Rc8 {[%clk
0:00:25.7]} 35. Kd2 {[%clk 0:00:37.4]} 35... Rxc5 {[%clk 0:00:25.7]} 36. Bg2
{[%clk 0:00:38.3]} 36... Ra5 {[%clk 0:00:25.7]} 37. Kd3 {[%clk 0:00:38.4]} 37...
Kg7 {[%clk 0:00:25.2]} 38. Ke2 {[%clk 0:00:38.4]} 38... Rxa2+ {[%clk 0:00:25.2]}
39. Kf1 {[%clk 0:00:39.1]} 39... Rb2 {[%clk 0:00:24.8]} 40. Be4 {[%clk 0:00:39]}
40... a5 {[%clk 0:00:24.8]} 41. Bd3 {[%clk 0:00:39.2]} 41... a4 {[%clk 0:00:25]}
42. Bc4 {[%clk 0:00:39.8]} 42... a3 {[%clk 0:00:25.3]} 43. Bd5 {[%clk
0:00:40.7]} 43... Kf6 {[%clk 0:00:25.3]} 44. Bc4 {[%clk 0:00:40.9]} 44... d3
{[%clk 0:00:25.2]} 45. Ba2 {[%clk 0:00:38.8]} 0-1

[Event "Early-Titled-Tuesday-Blitz-May-14-2024"]
[Site "Chess.com"]
[Date "2024.05.14"]
[Round "6"]
[White "PapaieDudu"]
[Black "Mikhail_Golubev"]
[Result "0-1"]
[WhiteElo "2375"]
[BlackElo "2541"]
[TimeControl "180+1"]
[EndTime "9:08:13 PDT"]
[Termination "Mikhail_Golubev won by checkmate"]

1. Nf3 {[%clk 0:03:00.9]} 1... d6 {[%clk 0:02:56.8]} 2. d4 {[%clk 0:03:01.1]}
2... Nf6 {[%clk 0:02:55.9]} 3. c4 {[%clk 0:03:01.3]} 3... g6 {[%clk 0:02:55.1]}
4. Nc3 {[%clk 0:03:01.7]} 4... Bg7 {[%clk 0:02:55.7]} 5. Bf4 {[%clk 0:02:59.7]}
5... O-O {[%clk 0:02:55.2]} 6. e3 {[%clk 0:03:00.1]} 6... Nc6 {[%clk 0:02:50.4]}
7. d5 {[%clk 0:02:54.5]} 7... e5 {[%clk 0:02:48.7]} 8. dxc6 {[%clk 0:02:48.6]}
8... exf4 {[%clk 0:02:48.2]} 9. cxb7 {[%clk 0:02:49.3]} 9... Bxb7 {[%clk
0:02:47.3]} 10. exf4 {[%clk 0:02:48.9]} 10... Re8+ {[%clk 0:02:47.1]} 11. Be2
{[%clk 0:02:47.9]} 11... Bxf3 {[%clk 0:02:45.5]} 12. gxf3 {[%clk 0:02:48.1]}
12... Nh5 {[%clk 0:02:43.7]} 13. Nd5 {[%clk 0:02:44.6]} 13... c6 {[%clk
0:02:39.7]} 14. Ne3 {[%clk 0:02:44.2]} 14... Bxb2 {[%clk 0:02:31.5]} 15. Rb1
{[%clk 0:02:42.9]} 15... Bc3+ {[%clk 0:02:31.4]} 16. Kf1 {[%clk 0:02:43.3]}
16... Nxf4 {[%clk 0:02:30.8]} 17. h4 {[%clk 0:02:40.6]} 17... h5 {[%clk
0:02:23]} 18. Bd3 {[%clk 0:02:32.4]} 18... Qf6 {[%clk 0:02:16.1]} 19. Be4 {[%clk
0:02:29.7]} 19... Rab8 {[%clk 0:02:02.6]} 20. Bxc6 {[%clk 0:02:26.9]} 20... Rxb1
{[%clk 0:01:22.5]} 21. Qxb1 {[%clk 0:02:27.3]} 21... Re5 {[%clk 0:01:14]} 22.
Be4 {[%clk 0:01:55.6]} 22... Bd4 {[%clk 0:01:07.9]} 23. Qb7 {[%clk 0:00:54.9]}
23... Bxe3 {[%clk 0:01:01.8]} 24. fxe3 {[%clk 0:00:48.4]} 24... Ne6 {[%clk
0:01:01.8]} 25. Qxa7 {[%clk 0:00:37.1]} 25... Nc5 {[%clk 0:00:59.4]} 26. Kg2
{[%clk 0:00:25.2]} 26... Kg7 {[%clk 0:00:58.2]} 27. Qa8 {[%clk 0:00:08.1]} 27...
Nxe4 {[%clk 0:00:51.2]} 28. fxe4 {[%clk 0:00:08.1]} 28... Qe6 {[%clk 0:00:50.9]}
29. Rf1 {[%clk 0:00:02]} 29... Qg4+ {[%clk 0:00:40.6]} 30. Kh2 {[%clk
0:00:01.6]} 30... Qxh4+ {[%clk 0:00:38.8]} 31. Kg2 {[%clk 0:00:02.2]} 31... Qg4+
{[%clk 0:00:37.6]} 32. Kh2 {[%clk 0:00:02.1]} 32... Qe2+ {[%clk 0:00:36]} 33.
Kg1 {[%clk 0:00:02.3]} 33... Rg5+ {[%clk 0:00:35.7]} 34. Kh1 {[%clk 0:00:01.8]}
34... Qg2# {[%clk 0:00:35.2]} 0-1

[Event "Early-Titled-Tuesday-Blitz-May-14-2024"]
[Site "Chess.com"]
[Date "2024.05.14"]
[Round "6"]
[White "Gareth-Bale11"]
[Black "RojonR"]
[Result "1-0"]
[WhiteElo "2901"]
[BlackElo "2607"]
[TimeControl "180+1"]
[EndTime "9:08:14 PDT"]
[Termination "Gareth-Bale11 won by resignation"]

1. e4 {[%clk 0:03:00.9]} 1... c5 {[%clk 0:02:59.1]} 2. Nf3 {[%clk 0:02:59.8]}
2... Nc6 {[%clk 0:02:58.8]} 3. Bb5 {[%clk 0:02:54.9]} 3... e6 {[%clk 0:02:58.6]}
4. c3 {[%clk 0:02:51]} 4... Nge7 {[%clk 0:02:53.4]} 5. d4 {[%clk 0:02:44.2]}
5... cxd4 {[%clk 0:02:53.3]} 6. cxd4 {[%clk 0:02:44.2]} 6... d5 {[%clk
0:02:53.6]} 7. e5 {[%clk 0:02:42.8]} 7... a6 {[%clk 0:02:52.3]} 8. Bd3 {[%clk
0:02:36.2]} 8... Nf5 {[%clk 0:02:47.7]} 9. Bxf5 {[%clk 0:02:35.6]} 9... exf5
{[%clk 0:02:48.6]} 10. Nc3 {[%clk 0:02:35.4]} 10... Be7 {[%clk 0:02:48]} 11. h4
{[%clk 0:02:16.9]} 11... O-O {[%clk 0:02:44.2]} 12. Bg5 {[%clk 0:02:13.9]} 12...
Be6 {[%clk 0:02:42.9]} 13. Qd2 {[%clk 0:02:12.6]} 13... Rc8 {[%clk 0:02:36.4]}
14. O-O {[%clk 0:02:10.7]} 14... h6 {[%clk 0:02:21.8]} 15. Bxe7 {[%clk
0:02:09.8]} 15... Qxe7 {[%clk 0:02:20.8]} 16. Rac1 {[%clk 0:01:54.4]} 16... Qb4
{[%clk 0:02:08.1]} 17. g3 {[%clk 0:01:29.1]} 17... Rc7 {[%clk 0:01:58.7]} 18. a3
{[%clk 0:01:16.6]} 18... Qb3 {[%clk 0:01:50.7]} 19. Kg2 {[%clk 0:00:40.9]} 19...
Rfc8 {[%clk 0:01:50.2]} 20. Ne2 {[%clk 0:00:35.2]} 20... b6 {[%clk 0:01:30.6]}
21. Rc3 {[%clk 0:00:33.5]} 21... Qa4 {[%clk 0:01:27]} 22. Rfc1 {[%clk
0:00:33.4]} 22... Kf8 {[%clk 0:01:07.9]} 23. Nf4 {[%clk 0:00:32]} 23... Ke7
{[%clk 0:01:07.9]} 24. h5 {[%clk 0:00:21.4]} 24... Kd7 {[%clk 0:01:05.6]} 25.
R1c2 {[%clk 0:00:18.9]} 25... Na5 {[%clk 0:01:02.8]} 26. Rxc7+ {[%clk
0:00:17.3]} 26... Rxc7 {[%clk 0:01:03.7]} 27. Rxc7+ {[%clk 0:00:17.6]} 27...
Kxc7 {[%clk 0:01:04.6]} 28. Ne1 {[%clk 0:00:06.1]} 28... Qc4 {[%clk 0:00:56.5]}
29. Nc2 {[%clk 0:00:03.8]} 29... Nb3 {[%clk 0:00:54.4]} 30. Qd1 {[%clk
0:00:04.3]} 30... a5 {[%clk 0:00:51]} 31. Ne3 {[%clk 0:00:04.5]} 31... Qb5
{[%clk 0:00:46.1]} 32. Qc2+ {[%clk 0:00:04.8]} 32... Kb7 {[%clk 0:00:43.7]} 33.
Nxf5 {[%clk 0:00:05.3]} 33... a4 {[%clk 0:00:36.1]} 34. Nd6+ {[%clk 0:00:05.1]}
1-0

[Event "Early-Titled-Tuesday-Blitz-May-14-2024"]
[Site "Chess.com"]
[Date "2024.05.14"]
[Round "6"]
[White "Eliwood44"]
[Black "Blitz_Lover1"]
[Result "1-0"]
[WhiteElo "2461"]
[BlackElo "2270"]
[TimeControl "180+1"]
[EndTime "9:08:14 PDT"]
[Termination "Eliwood44 won on time"]

1. d4 {[%clk 0:03:00.9]} 1... Nf6 {[%clk 0:02:58.8]} 2. c4 {[%clk 0:03:00.5]}
2... e6 {[%clk 0:02:59]} 3. Nc3 {[%clk 0:03:00.4]} 3... Bb4 {[%clk 0:02:59.2]}
4. e3 {[%clk 0:02:59.1]} 4... c5 {[%clk 0:02:54.5]} 5. Ne2 {[%clk 0:02:58.9]}
5... O-O {[%clk 0:02:49.1]} 6. a3 {[%clk 0:02:59]} 6... Bxc3+ {[%clk 0:02:48.1]}
7. Nxc3 {[%clk 0:02:58.9]} 7... b6 {[%clk 0:02:48.1]} 8. d5 {[%clk 0:02:58.4]}
8... d6 {[%clk 0:02:39.9]} 9. Bd3 {[%clk 0:02:54.8]} 9... exd5 {[%clk
0:02:38.1]} 10. cxd5 {[%clk 0:02:54.7]} 10... a6 {[%clk 0:02:36.2]} 11. a4
{[%clk 0:02:52.2]} 11... Nbd7 {[%clk 0:02:34.1]} 12. f4 {[%clk 0:02:50.2]} 12...
Qe7 {[%clk 0:02:29.6]} 13. O-O {[%clk 0:02:49.6]} 13... Bb7 {[%clk 0:02:03.7]}
14. e4 {[%clk 0:02:48.5]} 14... c4 {[%clk 0:02:03.5]} 15. Bc2 {[%clk 0:02:47.7]}
15... Nc5 {[%clk 0:02:00.5]} 16. Re1 {[%clk 0:02:42.1]} 16... Rfe8 {[%clk
0:01:54.7]} 17. e5 {[%clk 0:02:41.8]} 17... dxe5 {[%clk 0:01:50.2]} 18. fxe5
{[%clk 0:02:42.7]} 18... Rad8 {[%clk 0:01:34]} 19. Bg5 {[%clk 0:02:41.4]} 19...
h6 {[%clk 0:01:27]} 20. Bxf6 {[%clk 0:02:34.4]} 20... gxf6 {[%clk 0:01:25.4]}
21. Qg4+ {[%clk 0:02:34.2]} 21... Kf8 {[%clk 0:01:11]} 22. Qf4 {[%clk
0:02:27.3]} 22... Kg7 {[%clk 0:00:36.7]} 23. Qg3+ {[%clk 0:02:03.6]} 23... Kh8
{[%clk 0:00:31.8]} 24. Qh4 {[%clk 0:01:57.8]} 24... Kg7 {[%clk 0:00:23]} 25.
Qg4+ {[%clk 0:01:57.9]} 25... Kf8 {[%clk 0:00:21]} 26. d6 {[%clk 0:01:54.1]}
26... Qxe5 {[%clk 0:00:14.6]} 27. Rxe5 {[%clk 0:01:52.8]} 27... Rxe5 {[%clk
0:00:15.5]} 28. Rd1 {[%clk 0:01:49]} 28... Rg5 {[%clk 0:00:15]} 29. Qe2 {[%clk
0:01:47.8]} 29... Rxg2+ {[%clk 0:00:11.6]} 30. Qxg2 {[%clk 0:01:48.7]} 30...
Bxg2 {[%clk 0:00:11.7]} 31. Kxg2 {[%clk 0:01:49.6]} 31... Ne6 {[%clk 0:00:06.1]}
32. a5 {[%clk 0:01:43.4]} 32... b5 {[%clk 0:00:05.5]} 33. Ne4 {[%clk 0:01:43.5]}
33... f5 {[%clk 0:00:05]} 34. Nf6 {[%clk 0:01:43.4]} 34... Nf4+ {[%clk
0:00:03.9]} 35. Kf3 {[%clk 0:01:42.7]} 35... Nd3 {[%clk 0:00:04.6]} 36. Bxd3
{[%clk 0:01:42.8]} 36... Rxd6 {[%clk 0:00:04.7]} 37. Bc2 {[%clk 0:01:40]} 37...
Rxf6 {[%clk 0:00:04.5]} 38. Kf4 {[%clk 0:01:39.7]} 38... Kg7 {[%clk 0:00:03.6]}
39. Bxf5 {[%clk 0:01:36.1]} 39... h5 {[%clk 0:00:02.6]} 40. Kg5 {[%clk
0:01:35.6]} 40... Rc6 {[%clk 0:00:01.6]} 41. Rc1 {[%clk 0:01:29.6]} 41... b4
{[%clk 0:00:01.7]} 42. h4 {[%clk 0:01:29.7]} 42... c3 {[%clk 0:00:01.2]} 43.
bxc3 {[%clk 0:01:29.7]} 43... bxc3 {[%clk 0:00:02.1]} 44. Kxh5 {[%clk
0:01:29.6]} 44... Rc5 {[%clk 0:00:02.6]} 45. Kg4 {[%clk 0:01:30]} 45... Kf6
{[%clk 0:00:03.3]} 46. Bc2 {[%clk 0:01:29.8]} 46... Ke5 {[%clk 0:00:03.4]} 47.
h5 {[%clk 0:01:30.1]} 47... Kd4 {[%clk 0:00:03.3]} 48. h6 {[%clk 0:01:30.2]}
48... Ke3 {[%clk 0:00:02.9]} 49. h7 {[%clk 0:01:30.4]} 49... Rc8 {[%clk
0:00:03.5]} 50. Rh1 {[%clk 0:01:27.7]} 50... Kd2 {[%clk 0:00:03.8]} 51. Rh2+
{[%clk 0:01:27.5]} 51... Kc1 {[%clk 0:00:03.6]} 52. Kg5 {[%clk 0:01:25.9]} 52...
Kb2 {[%clk 0:00:02.8]} 53. Bf5+ {[%clk 0:01:23.1]} 53... c2 {[%clk 0:00:03.2]}
54. Bxc8 {[%clk 0:01:22.7]} 1-0

[Event "Early-Titled-Tuesday-Blitz-May-14-2024"]
[Site "Chess.com"]
[Date "2024.05.14"]
[Round "6"]
[White "knightinshiningarmour16"]
[Black "Pragmatist237"]
[Result "1-0"]
[WhiteElo "2359"]
[BlackElo "2215"]
[TimeControl "180+1"]
[EndTime "9:08:14 PDT"]
[Termination "knightinshiningarmour16 won by resignation"]

1. d4 {[%clk 0:02:58.8]} 1... Nf6 {[%clk 0:02:56.3]} 2. Nf3 {[%clk 0:02:58.1]}
2... b6 {[%clk 0:02:55.4]} 3. g3 {[%clk 0:02:57.4]} 3... Bb7 {[%clk 0:02:55.6]}
4. Bg2 {[%clk 0:02:57.4]} 4... g6 {[%clk 0:02:55.9]} 5. O-O {[%clk 0:02:57.7]}
5... Bg7 {[%clk 0:02:56.3]} 6. c3 {[%clk 0:02:58.2]} 6... O-O {[%clk 0:02:56.6]}
7. Qc2 {[%clk 0:02:58.2]} 7... Be4 {[%clk 0:02:51.3]} 8. Qb3 {[%clk 0:02:56.9]}
8... d6 {[%clk 0:02:51.1]} 9. c4 {[%clk 0:02:56.3]} 9... Nbd7 {[%clk 0:02:48.1]}
10. Nc3 {[%clk 0:02:56.3]} 10... Bb7 {[%clk 0:02:47.6]} 11. d5 {[%clk
0:02:55.5]} 11... e5 {[%clk 0:02:46.6]} 12. e4 {[%clk 0:02:54.8]} 12... Nc5
{[%clk 0:02:45.2]} 13. Qc2 {[%clk 0:02:54.6]} 13... a5 {[%clk 0:02:45.5]} 14. a3
{[%clk 0:02:53.8]} 14... a4 {[%clk 0:02:44.9]} 15. Be3 {[%clk 0:02:53.9]} 15...
Nfd7 {[%clk 0:02:37.3]} 16. Rad1 {[%clk 0:02:44.5]} 16... Nb3 {[%clk 0:02:34.7]}
17. Rfe1 {[%clk 0:02:44]} 17... Ndc5 {[%clk 0:02:34.6]} 18. Bxc5 {[%clk
0:02:42.3]} 18... Nxc5 {[%clk 0:02:34.5]} 19. Nd2 {[%clk 0:02:39.3]} 19... Bc8
{[%clk 0:02:33.8]} 20. b4 {[%clk 0:02:36.4]} 20... axb3 {[%clk 0:02:33.7]} 21.
Nxb3 {[%clk 0:02:36.8]} 21... Rxa3 {[%clk 0:02:33.8]} 22. Nxc5 {[%clk
0:02:36.9]} 22... bxc5 {[%clk 0:02:34.7]} 23. Nb5 {[%clk 0:02:37.2]} 23... Ra8
{[%clk 0:02:34.6]} 24. Ra1 {[%clk 0:02:37.5]} 24... Rxa1 {[%clk 0:02:13.6]} 25.
Rxa1 {[%clk 0:02:37.1]} 25... Bd7 {[%clk 0:02:12.4]} 26. Nc3 {[%clk 0:02:36.8]}
26... f5 {[%clk 0:02:10.7]} 27. f3 {[%clk 0:02:30.9]} 27... f4 {[%clk
0:02:09.7]} 28. Ra7 {[%clk 0:02:28.3]} 28... g5 {[%clk 0:02:00.4]} 29. Qa2
{[%clk 0:02:19.4]} 29... g4 {[%clk 0:02:00.1]} 30. fxg4 {[%clk 0:02:18.4]} 30...
f3 {[%clk 0:01:59.9]} 31. Bf1 {[%clk 0:02:18.2]} 31... Bxg4 {[%clk 0:01:59.7]}
32. Nd1 {[%clk 0:02:14.5]} 32... Bh6 {[%clk 0:01:56.5]} 33. Nf2 {[%clk
0:02:14.5]} 33... Be3 {[%clk 0:01:56.3]} 34. Qa5 {[%clk 0:02:14.2]} 34... Qg5
{[%clk 0:01:22.1]} 35. Rxc7 {[%clk 0:02:08.5]} 35... h5 {[%clk 0:01:01.5]} 36.
Ra7 {[%clk 0:01:48.9]} 36... h4 {[%clk 0:00:58.3]} 37. Qe1 {[%clk 0:01:47.9]}
37... hxg3 {[%clk 0:00:50.2]} 38. hxg3 {[%clk 0:01:48.8]} 38... Bc8 {[%clk
0:00:50.3]} 39. Kh2 {[%clk 0:01:47.7]} 39... Rf6 {[%clk 0:00:31.3]} 40. Nh3
{[%clk 0:01:47.4]} 40... Rh6 {[%clk 0:00:31.5]} 41. Ra3 {[%clk 0:01:27.5]} 41...
Bxh3 {[%clk 0:00:21.3]} 42. Bxh3 {[%clk 0:01:26.7]} 42... Qg4 {[%clk 0:00:16.8]}
43. Qf1 {[%clk 0:01:26]} 43... Bf4 {[%clk 0:00:11.2]} 44. Rxf3 {[%clk
0:01:22.7]} 44... Bxg3+ {[%clk 0:00:03.9]} 45. Rxg3 {[%clk 0:01:21.9]} 1-0

[Event "Early-Titled-Tuesday-Blitz-May-14-2024"]
[Site "Chess.com"]
[Date "2024.05.14"]
[Round "6"]
[White "grozdanovic_a"]
[Black "campochess"]
[Result "1/2-1/2"]
[WhiteElo "2319"]
[BlackElo "2112"]
[TimeControl "180+1"]
[EndTime "9:08:15 PDT"]
[Termination "Game drawn by agreement"]

1. d4 {[%clk 0:03:00.9]} 1... Nf6 {[%clk 0:02:57.6]} 2. Nf3 {[%clk 0:03:01.2]}
2... g6 {[%clk 0:02:57.7]} 3. g3 {[%clk 0:03:01]} 3... Bg7 {[%clk 0:02:57.8]} 4.
Bg2 {[%clk 0:03:01.7]} 4... d6 {[%clk 0:02:58]} 5. O-O {[%clk 0:03:02.2]} 5...
O-O {[%clk 0:02:57.7]} 6. Re1 {[%clk 0:03:02.9]} 6... Nbd7 {[%clk 0:02:57.7]} 7.
Nbd2 {[%clk 0:03:03.5]} 7... e5 {[%clk 0:02:56.9]} 8. c3 {[%clk 0:03:03.3]} 8...
Re8 {[%clk 0:02:55.1]} 9. dxe5 {[%clk 0:03:01.3]} 9... Nxe5 {[%clk 0:02:54.3]}
10. Nxe5 {[%clk 0:03:01.3]} 10... Rxe5 {[%clk 0:02:54.2]} 11. Nf3 {[%clk
0:03:01.7]} 11... Re8 {[%clk 0:02:54.2]} 12. Bg5 {[%clk 0:02:57.6]} 12... h6
{[%clk 0:02:52.5]} 13. Bd2 {[%clk 0:02:58.2]} 13... Rb8 {[%clk 0:02:51.3]} 14.
Qc1 {[%clk 0:02:57.1]} 14... Kh7 {[%clk 0:02:49.9]} 15. a4 {[%clk 0:02:55.9]}
15... a5 {[%clk 0:02:48.6]} 16. Nd4 {[%clk 0:02:50.4]} 16... c6 {[%clk
0:02:44.5]} 17. Qc2 {[%clk 0:02:44.7]} 17... d5 {[%clk 0:02:41.6]} 18. Rad1
{[%clk 0:02:41.8]} 18... Qb6 {[%clk 0:02:40.1]} 19. Bf4 {[%clk 0:02:40.7]} 19...
Ra8 {[%clk 0:02:38.8]} 20. Nb3 {[%clk 0:02:30.8]} 20... Bf5 {[%clk 0:02:34.9]}
21. e4 {[%clk 0:02:23.2]} 21... dxe4 {[%clk 0:02:34.1]} 22. Be3 {[%clk
0:02:22.2]} 22... Qc7 {[%clk 0:02:29.3]} 23. Nd4 {[%clk 0:02:21.5]} 23... Bg4
{[%clk 0:02:23.1]} 24. Rd2 {[%clk 0:02:20.2]} 24... Rad8 {[%clk 0:02:21.7]} 25.
h3 {[%clk 0:02:18.2]} 25... Bc8 {[%clk 0:02:20]} 26. Nb3 {[%clk 0:02:08.3]}
26... Rxd2 {[%clk 0:02:12.6]} 27. Nxd2 {[%clk 0:02:09.2]} 27... Bf5 {[%clk
0:02:02.7]} 28. g4 {[%clk 0:02:09.2]} 28... Bd7 {[%clk 0:02:01.9]} 29. Nxe4
{[%clk 0:02:09.4]} 29... Nd5 {[%clk 0:02:00.5]} 30. Bd2 {[%clk 0:02:02.7]} 30...
f5 {[%clk 0:01:58]} 31. Nc5 {[%clk 0:01:44.7]} 31... Rxe1+ {[%clk 0:01:57.4]}
32. Bxe1 {[%clk 0:01:45.3]} 32... Bc8 {[%clk 0:01:50.9]} 33. gxf5 {[%clk
0:01:35.5]} 33... Bxf5 {[%clk 0:01:49.7]} 34. Qd1 {[%clk 0:01:31.5]} 34... Qe7
{[%clk 0:01:43.5]} 35. b4 {[%clk 0:01:00.1]} 35... axb4 {[%clk 0:01:39.3]} 36.
cxb4 {[%clk 0:00:58.4]} 36... Nf4 {[%clk 0:01:34.6]} 37. Bd2 {[%clk 0:00:50.4]}
37... Ne2+ {[%clk 0:01:24]} 38. Kh1 {[%clk 0:00:47.3]} 38... Nd4 {[%clk
0:01:19.3]} 39. Be3 {[%clk 0:00:44.5]} 39... Nc2 {[%clk 0:01:11.9]} 40. Qd2
{[%clk 0:00:34.3]} 40... Nxe3 {[%clk 0:01:10.2]} 41. Qxe3 {[%clk 0:00:35]} 41...
Qxe3 {[%clk 0:01:08.9]} 42. fxe3 {[%clk 0:00:35.7]} 42... Bc3 {[%clk 0:01:07.6]}
43. Nxb7 {[%clk 0:00:34.9]} 43... Bxb4 {[%clk 0:01:07.6]} 44. Bxc6 {[%clk
0:00:35.5]} 44... Bxh3 {[%clk 0:01:05.6]} 45. a5 {[%clk 0:00:34.4]} 45... Bf1
{[%clk 0:01:04.4]} 46. Kg1 {[%clk 0:00:30.4]} 46... Ba6 {[%clk 0:01:04.1]} 47.
Kf2 {[%clk 0:00:27.4]} 47... Bxb7 {[%clk 0:01:02]} 48. Bxb7 {[%clk 0:00:27.8]}
48... Bxa5 {[%clk 0:01:02]} 49. Be4 {[%clk 0:00:25.6]} 49... Kg7 {[%clk
0:01:01.8]} 50. Bxg6 {[%clk 0:00:21.4]} 50... Kxg6 {[%clk 0:01:01]} 51. Kg2
{[%clk 0:00:22.1]} 1/2-1/2

[Event "Early-Titled-Tuesday-Blitz-May-14-2024"]
[Site "Chess.com"]
[Date "2024.05.14"]
[Round "6"]
[White "JJDAREK"]
[Black "Alenzer"]
[Result "1-0"]
[WhiteElo "2383"]
[BlackElo "2209"]
[TimeControl "180+1"]
[EndTime "9:08:17 PDT"]
[Termination "JJDAREK won by resignation"]

1. d4 {[%clk 0:03:00.9]} 1... d5 {[%clk 0:02:59.4]} 2. c4 {[%clk 0:03:00.3]}
2... dxc4 {[%clk 0:02:59.8]} 3. Nf3 {[%clk 0:02:59.9]} 3... a6 {[%clk
0:02:59.2]} 4. e3 {[%clk 0:02:52]} 4... Nf6 {[%clk 0:02:58.5]} 5. Bxc4 {[%clk
0:02:51.2]} 5... e6 {[%clk 0:02:58.7]} 6. O-O {[%clk 0:02:50.6]} 6... b5 {[%clk
0:02:58.7]} 7. Be2 {[%clk 0:02:47.7]} 7... Bb7 {[%clk 0:02:58.5]} 8. a4 {[%clk
0:02:45.1]} 8... b4 {[%clk 0:02:56.2]} 9. b3 {[%clk 0:02:41.1]} 9... Be7 {[%clk
0:02:54.5]} 10. Bb2 {[%clk 0:02:37.6]} 10... O-O {[%clk 0:02:53.9]} 11. Nbd2
{[%clk 0:02:37.9]} 11... c5 {[%clk 0:02:53.6]} 12. dxc5 {[%clk 0:02:37.7]} 12...
Bxc5 {[%clk 0:02:53.7]} 13. Rc1 {[%clk 0:02:35.5]} 13... Qb6 {[%clk 0:02:53.4]}
14. Nc4 {[%clk 0:02:34.8]} 14... Qd8 {[%clk 0:02:47.9]} 15. Nce5 {[%clk
0:02:23.1]} 15... Be7 {[%clk 0:02:39.7]} 16. Nd4 {[%clk 0:02:07]} 16... Qd5
{[%clk 0:02:11.9]} 17. Bf3 {[%clk 0:02:03]} 17... Qxe5 {[%clk 0:02:11.6]} 18.
Bxb7 {[%clk 0:02:02.7]} 18... Ra7 {[%clk 0:02:11.1]} 19. Nc6 {[%clk 0:01:32.8]}
19... Qxb2 {[%clk 0:02:10.3]} 20. Nxa7 {[%clk 0:01:33.2]} 20... Nbd7 {[%clk
0:02:03]} 21. Nc6 {[%clk 0:01:31.2]} 21... Bc5 {[%clk 0:01:52.9]} 22. Qc2 {[%clk
0:01:21.1]} 22... Qxc2 {[%clk 0:01:47]} 23. Rxc2 {[%clk 0:01:22]} 23... Bb6
{[%clk 0:01:13.8]} 24. Bxa6 {[%clk 0:01:13.9]} 24... Nd5 {[%clk 0:01:09.4]} 25.
Bc4 {[%clk 0:01:07]} 25... N7f6 {[%clk 0:01:06]} 26. Bxd5 {[%clk 0:01:05.3]}
26... Nxd5 {[%clk 0:01:04.3]} 27. e4 {[%clk 0:01:00.9]} 27... Nc3 {[%clk
0:01:02.9]} 28. Nxb4 {[%clk 0:00:58.6]} 28... Nxe4 {[%clk 0:01:03.1]} 29. Nc6
{[%clk 0:00:54.5]} 29... g6 {[%clk 0:00:56.3]} 30. a5 {[%clk 0:00:53.8]} 30...
Bd8 {[%clk 0:00:51.1]} 31. Nxd8 {[%clk 0:00:51.7]} 31... Rxd8 {[%clk 0:00:51]}
32. a6 {[%clk 0:00:50.8]} 32... Kg7 {[%clk 0:00:49.7]} 33. a7 {[%clk 0:00:49.7]}
33... Ra8 {[%clk 0:00:47.8]} 34. Ra1 {[%clk 0:00:48.2]} 34... Nd6 {[%clk
0:00:47.4]} 35. Rc7 {[%clk 0:00:42.4]} 35... Kf6 {[%clk 0:00:40.5]} 36. b4
{[%clk 0:00:42.4]} 36... Ke5 {[%clk 0:00:39.4]} 37. b5 {[%clk 0:00:30.5]} 37...
Nc8 {[%clk 0:00:28.1]} 38. Rxc8 {[%clk 0:00:29.5]} 38... Rxc8 {[%clk 0:00:28.2]}
39. a8=Q {[%clk 0:00:28.6]} 1-0